[Event "DEN-chT XtraCon 2018-19"]
[Site "Denmark"]
[Date "2019.03.16"]
[Round "8"]
[White "Percivaldi, Martin"]
[Black "Munk, Kai"]
[Result "*"]
[ECO "D78"]
[WhiteElo "2389"]
[BlackElo "1958"]
[Annotator "NA"]
[PlyCount "81"]
[EventDate "2018.10.27"]
[EventType "team-tourn"]
[EventCountry "DEN"]
[SourceTitle "playchess.com"]
[Source "ChessBase"]
[SourceQuality "1"]
[TimeControl "40/5400+30:1800+30"]

1. Nf3 {[%emt 0:00:00]} Nf6 {[%emt 0:00:00]} 2. g3 {[%emt 0:00:07]} g6 {[%emt 0:00:52]} 3. Bg2 {[%emt 0:00:17]} Bg7 {[%emt 0:00:23]} 4. d4 {[%emt 0:00:15]} d5 {[%emt 0:01:10]} 5. c4 {[%emt 0:00:25]} c6 {[%emt 0:00:40]} 6. O-O {[%emt 0:00:11]} O-O {[%emt 0:00:20]} 7. Qb3 {[%emt 0:00:34]} e6 {[%emt 0:10:39]} 8. Nc3 {[%emt 0:01:25]} Nbd7 {[%emt 0:00:17]} 9. Bf4 {[%emt 0:04:19] D78: Fianchetto Grünfeld: 6 0-0 c6} Qb6 {[%emt 0:11:12]} (9... b6 10. cxd5 exd5 11. Rfe1 Bb7 12. a4 c5 13. Bd6 c4 14. Qa3 Re8 15. Nd2 Rc8 16. a5 h5 {1-0 (78) Gordievsky,D (2622)-Korobov,A (2652) Wijk aan Zee 2018}) 10. c5 {[%emt 0:09:45]} Qxb3 {[%emt 0:05:19]} 11. axb3 {[%emt 0:00:02]} b6 {[%emt 0:00:21]} 12. cxb6 $146 {[%emt 0:04:06]} ({Predecessor:} 12. Bd6 Re8 13. b4 b5 14. Rfe1 Bb7 15. Ne5 a6 16. e4 Bf8 17. Bxf8 Kxf8 18. exd5 exd5 {½-½ (46) Simon,L (1936)-Ongut,T (1531) Budapest 2014}) 12... Nxb6 {[%emt 0:00:06]} 13. Bd6 {[%emt 0:07:28]} Re8 {[%emt 0:01:18]} 14. Ra5 {[%emt 0:05:02]} Nfd7 {[%emt 0:15:24]} 15. Rfa1 {[%emt 0:00:59]} a6 {[%emt 0:00:07]} 16. e3 {[%emt 0:00:49]} Bf8 {[%emt 0:03:02]} 17. Bxf8 {[%emt 0:04:17]} Kxf8 {[%emt 0:00:08]} 18. Bf1 {[%emt 0:00:38]} Nb8 {[%emt 0:00:38]} 19. Na2 {[%emt 0:06:01]} Re7 {[%emt 0:00:55]} 20. Ne5 {[%emt 0:02:50]} Rea7 {[%emt 0:01:10]} 21. Nb4 {[%emt 0:06:00]} Bb7 {[%emt 0:02:19]} 22. Rc1 {[%emt 0:03:24]} N6d7 {[%emt 0:03:22]} 23. Ned3 {[%emt 0:15:00]} Ke7 {[%emt 0:11:59]} 24. g4 {[%emt 0:00:13]} g5 {[%emt 0:01:47]} 25. Be2 {[%emt 0:01:04]} Kd6 {[%emt 0:04:21]} 26. h4 {[%emt 0:01:24]} h6 {[%emt 0:03:10]} 27. Kg2 {[%emt 0:01:41]} Bc8 {[%emt 0:03:01]} 28. hxg5 {[%emt 0:01:55]} hxg5 {[%emt 0:00:07]} 29. Rh1 {[%emt 0:00:49]} Rc7 {[%emt 0:02:50]} 30. Rh7 {[%emt 0:03:57]} f6 {[%emt 0:03:55]} 31. Nc5 {[%emt 0:00:21]} Rca7 $2 {[%emt 0:03:27]} (31... Nf8 $16 32. Rh6 Nbd7) 32. Rf7 {[%emt 0:04:04]} e5 {[%emt 0:02:03]} 33. f3 {[%emt 0:02:31]} Nxc5 {[%emt 0:00:56]} 34. dxc5+ {[%emt 0:00:30]} Ke6 {[%emt 0:00:34]} 35. Rf8 {[%emt 0:00:29]} Bb7 {[%emt 0:02:33]} 36. Rh8 {[%emt 0:01:53]} Nd7 {[%emt 0:02:25]} 37. Rh7 {[%emt 0:00:13]} Nf8 {[%emt 0:04:43]} 38. Rc7 {[%emt 0:04:02]} Rc8 {[%emt 0:00:51]} 39. Rg7 {[%emt 0:00:48]} f5 {[%emt 0:00:33]} 40. Bxa6 {[%emt 0:03:23]} Nd7 {[%emt 0:00:29]} 41. gxf5+ $18 {[%emt 0:30:09]} *

[Event "DEN-chT XtraCon 2018-19"]
[Site "Denmark"]
[Date "2019.03.16"]
[Round "8"]
[White "Lindgren, Philip"]
[Black "Bank, Pelle"]
[Result "1/2-1/2"]
[ECO "D70"]
[WhiteElo "2383"]
[BlackElo "2298"]
[Annotator "NA"]
[PlyCount "58"]
[EventDate "2018.10.27"]
[EventType "team-tourn"]
[EventCountry "DEN"]
[SourceTitle "playchess.com"]
[Source "ChessBase"]
[SourceQuality "1"]
[TimeControl "40/5400+30:1800+30"]

1. d4 {[%emt 0:00:00]} Nf6 {[%emt 0:00:00]} 2. c4 {[%emt 0:00:00]} g6 {[%emt 0:00:00]} 3. Nf3 {[%emt 0:00:13]} Bg7 {[%emt 0:00:06]} 4. Nc3 {[%emt 0:00:18]} O-O {[%emt 0:00:06]} 5. Bg5 {[%emt 0:00:32]} c6 {[%emt 0:03:19]} 6. e3 {[%emt 0:01:18]} a6 {[%emt 0:02:08]} 7. Be2 {[%emt 0:06:30]} b5 {[%emt 0:00:17]} 8. a3 {[%emt 0:04:39]} bxc4 {[%emt 0:02:35]} 9. Bxc4 {[%emt 0:00:16]} a5 {[%emt 0:03:08]} 10. O-O {[%emt 0:02:34]} Ba6 {[%emt 0:01:58]} 11. Bxa6 {[%emt 0:01:20]} Nxa6 {[%emt 0:00:15]} 12. Qe2 {[%emt 0:01:12]} Nc7 {[%emt 0:06:42]} 13. Rac1 {[%emt 0:11:37]} Rb8 {[%emt 0:00:54]} 14. Rc2 {[%emt 0:03:21]} Ne6 {[%emt 0:17:48]} 15. Bh4 {[%emt 0:03:14]} Rb7 {[%emt 0:18:26]} 16. h3 {[%emt 0:06:13]} Qa8 {[%emt 0:07:53]} 17. Rfc1 {[%emt 0:12:12]} Qa7 {[%emt 0:02:28]} 18. Na4 {[%emt 0:08:12]} h6 $14 {[%emt 0:04:02]} 19. Bxf6 {[%emt 0:07:24]} Bxf6 {[%emt 0:00:33]} 20. Nc5 {[%emt 0:02:47]} Nxc5 {[%emt 0:00:09]} 21. Rxc5 {[%emt 0:00:06]} Rfb8 {[%emt 0:01:06]} 22. R1c2 {[%emt 0:00:07]} Rb3 {[%emt 0:09:58]} 23. Ne1 {[%emt 0:04:08]} Qb6 {[%emt 0:01:33]} 24. Nd3 {[%emt 0:01:09]} Qa6 {[%emt 0:00:13]} 25. R5c4 {[%emt 0:07:29]} d6 {[%emt 0:03:44]} 26. Nc1 {[%emt 0:12:04]} R3b6 {[%emt 0:05:23]} 27. Nd3 {[%emt 0:01:39]} Rb3 {[%emt 0:00:46]} 28. Nc1 {[%emt 0:00:06]} R3b6 {[%emt 0:01:00]} 29. Nd3 {[%emt 0:01:25]} Rb3 1/2-1/2

[Event "DEN-chT XtraCon 2018-19"]
[Site "Denmark"]
[Date "2019.03.16"]
[Round "8"]
[White "Skytte, Rasmus"]
[Black "Hoi, Carsten"]
[Result "1-0"]
[ECO "B06"]
[WhiteElo "2372"]
[BlackElo "2359"]
[Annotator "NA"]
[PlyCount "57"]
[EventDate "2018.10.27"]
[EventType "team-tourn"]
[EventCountry "DEN"]
[SourceTitle "playchess.com"]
[Source "ChessBase"]
[SourceQuality "1"]
[TimeControl "40/5400+30:1800+30"]

1. e4 {[%emt 0:00:00]} g6 {[%emt 0:02:37]} 2. d4 {[%emt 0:00:00]} Bg7 {[%emt 0:00:32]} 3. Bc4 {[%emt 0:01:50]} c6 {[%emt 0:04:06]} 4. Nc3 {[%emt 0:04:02]} d5 {[%emt 0:05:52]} 5. exd5 {[%emt 0:00:39]} b5 {[%emt 0:00:37]} 6. Bb3 {[%emt 0:09:27]} b4 {[%emt 0:02:20]} 7. Nce2 {[%emt 0:07:14]} cxd5 {[%emt 0:00:43]} 8. Nf3 {[%emt 0:05:42]} Nf6 {[%emt 0:03:56]} 9. O-O {[%emt 0:01:10]} O-O {[%emt 0:00:10]} 10. Ne5 {[%emt 0:02:25]} Bb7 {[%emt 0:13:01]} 11. a3 {[%emt 0:08:32]} bxa3 {[%emt 0:01:45]} 12. Rxa3 {[%emt 0:00:31]} Nbd7 {[%emt 0:00:45]} 13. Bf4 {[%emt 0:03:26] B06: Modern Defence} Nh5 $146 {[%emt 0:03:29]} ({Predecessor:} 13... Nxe5 14. Bxe5 Ne4 15. Bxg7 Kxg7 16. Nf4 e6 17. Qe2 Qf6 18. Qe3 Rfb8 19. Rfa1 a6 20. Nd3 Bc8 {1-0 (47) Ftacnik,L (2610)-Schneider,B (2420) Vienna 1996}) 14. Nxd7 {[%emt 0:02:18]} Qxd7 {[%emt 0:01:00]} 15. Be3 {[%emt 0:03:06]} Nf6 {[%emt 0:02:28]} 16. Nc3 {[%emt 0:03:21]} Ne4 {[%emt 0:16:57]} 17. Nxe4 {[%emt 0:02:17]} dxe4 {[%emt 0:01:17]} 18. Qa1 {[%emt 0:01:34]} a6 {[%emt 0:03:25]} 19. Rd1 {[%emt 0:03:00]} Kh8 {[%emt 0:01:37]} (19... e6 $14) 20. Ra5 {[%emt 0:04:11]} f5 {[%emt 0:03:47]} 21. Bf4 {[%emt 0:01:57]} Rad8 {[%emt 0:05:09]} 22. Qa3 $16 {[%emt 0:09:06]} e3 {[%emt 0:16:31]} 23. fxe3 {[%emt 0:01:33]} Qc6 {[%emt 0:00:59]} 24. Rd2 {[%emt 0:04:00]} Rxd4 {[%emt 0:04:35]} 25. Bd5 {[%emt 0:13:40]} Rxd5 {[%emt 0:00:34]} 26. Raxd5 {[%emt 0:00:16]} Qb6 {[%emt 0:02:57]} 27. Rd7 {[%emt 0:01:36]} g5 {[%emt 0:01:39]} 28. Qxe7 {[%emt 0:02:12]} Qxb2 {[%emt 0:00:30]} 29. Rd8 {[%emt 0:01:25]} 1-0

[Event "DEN-chT XtraCon 2018-19"]
[Site "Denmark"]
[Date "2019.03.16"]
[Round "8"]
[White "Aabling-Thomsen, Jakob"]
[Black "Skytte Hagen, Andreas"]
[Result "0-1"]
[ECO "E90"]
[WhiteElo "2369"]
[BlackElo "2367"]
[Annotator "NA"]
[PlyCount "116"]
[EventDate "2018.10.27"]
[EventType "team-tourn"]
[EventCountry "DEN"]
[SourceTitle "playchess.com"]
[Source "ChessBase"]
[SourceQuality "1"]
[TimeControl "40/5400+30:1800+30"]

1. c4 {[%emt 0:00:00]} Nf6 {[%emt 0:00:00]} 2. Nc3 {[%emt 0:00:00]} g6 {[%emt 0:00:00]} 3. d4 {[%emt 0:00:03]} Bg7 {[%emt 0:00:00]} 4. e4 {[%emt 0:00:08]} d6 {[%emt 0:00:00]} 5. Nf3 {[%emt 0:00:06]} O-O {[%emt 0:00:00]} 6. Be3 {[%emt 0:00:05]} e5 {[%emt 0:00:37]} 7. dxe5 {[%emt 0:01:15]} dxe5 {[%emt 0:00:16]} 8. Qxd8 {[%emt 0:00:08]} Rxd8 {[%emt 0:00:05]} 9. Nd5 {[%emt 0:00:06]} Na6 {[%emt 0:11:57]} 10. O-O-O {[%emt 0:37:24]} Bg4 {[%emt 0:15:59] E90: King's Indian: Classical: Early deviations and 6 h3} 11. Bg5 {[%emt 0:10:17]} Rd6 {[%emt 0:00:36]} 12. Bxf6 {[%emt 0:02:34]} Bxf6 {[%emt 0:00:14]} 13. Be2 {[%emt 0:00:57] [#]} Bxf3 $146 {[%emt 0:05:04]} ({Predecessor:} 13... Kg7 14. Nd4 Bg5+ 15. Kb1 exd4 16. Bxg4 {0-1 (49) Pshmahov,O (2075)-Iljiushenok,I (2517) Samara 2017}) 14. Bxf3 {[%emt 0:08:22]} Bg5+ {[%emt 0:00:46]} 15. Kb1 {[%emt 0:01:57]} c6 {[%emt 0:01:13]} 16. h4 {[%emt 0:04:23]} Bd8 {[%emt 0:07:55]} 17. Ne3 {[%emt 0:05:57]} Rxd1+ {[%emt 0:07:52]} 18. Bxd1 {[%emt 0:06:29]} Nc5 {[%emt 0:07:48]} 19. Bc2 {[%emt 0:01:07]} Ne6 {[%emt 0:02:16]} 20. Ng4 {[%emt 0:05:23]} Bc7 {[%emt 0:01:10]} 21. h5 {[%emt 0:00:46]} Rd8 {[%emt 0:01:44]} 22. Kc1 {[%emt 0:10:05]} Kg7 {[%emt 0:05:51]} 23. g3 {[%emt 0:01:55]} f6 {[%emt 0:01:56]} 24. hxg6 {[%emt 0:00:28]} hxg6 {[%emt 0:00:10]} 25. Rd1 {[%emt 0:01:00]} Bd6 {[%emt 0:06:52]} 26. a3 {[%emt 0:00:41]} a5 {[%emt 0:00:37]} 27. Rd3 {[%emt 0:00:51]} Nd4 {[%emt 0:01:08]} 28. Bd1 {[%emt 0:00:07]} Rh8 {[%emt 0:01:28]} 29. f4 {[%emt 0:01:04]} Rh1 {[%emt 0:04:17]} 30. fxe5 {[%emt 0:00:38]} Bxe5 {[%emt 0:01:44]} 31. Nxe5 {[%emt 0:00:17]} fxe5 {[%emt 0:00:08]} 32. Kd2 {[%emt 0:00:12]} c5 {[%emt 0:04:56]} 33. Kc3 {[%emt 0:00:01]} Re1 {[%emt 0:00:36]} 34. b4 {[%emt 0:00:12]} b6 {[%emt 0:00:53]} 35. bxc5 {[%emt 0:01:52]} bxc5 {[%emt 0:00:06]} 36. Kd2 {[%emt 0:00:08]} Rxe4 {[%emt 0:01:28]} 37. Re3 {[%emt 0:00:56]} Rxe3 {[%emt 0:01:06]} 38. Kxe3 {[%emt 0:00:02]} Kf6 {[%emt 0:00:21]} 39. Ke4 {[%emt 0:00:11]} Ke6 {[%emt 0:00:16]} 40. Bg4+ {[%emt 0:01:05]} Kd6 {[%emt 0:00:11]} 41. Bd1 {[%emt 0:30:22]} Nf5 {[%emt 0:35:31]} 42. Kf3 $2 {[%emt 0:00:00]} (42. g4 $17 Nh6 43. Bf3) 42... Ke6 {[%emt 0:00:00]} 43. Kf2 {[%emt 0:00:00]} Nd6 {[%emt 0:00:00]} 44. Be2 {[%emt 0:00:00]} e4 {[%emt 0:00:00]} 45. g4 {[%emt 0:00:00]} Kf6 {[%emt 0:00:00]} 46. Bf1 {[%emt 0:00:00]} Kg5 {[%emt 0:00:00]} 47. Kg3 {[%emt 0:00:00]} Nf7 {[%emt 0:00:00]} 48. Bg2 {[%emt 0:00:00]} e3 $19 {[%emt 0:01:37]} 49. Kf3 {[%emt 0:00:00]} Ne5+ {[%emt 0:01:44]} 50. Kxe3 {[%emt 0:00:00]} Nxc4+ {[%emt 0:00:59]} 51. Ke4 {[%emt 0:00:00]} Kxg4 {[%emt 0:00:25]} 52. Bf3+ {[%emt 0:00:00]} Kg3 {[%emt 0:00:08]} 53. Be2 {[%emt 0:00:04]} Nxa3 {[%emt 0:00:07]} 54. Kd3 {[%emt 0:01:11]} Kf4 {[%emt 0:02:03]} 55. Kc3 {[%emt 0:00:32]} Ke3 {[%emt 0:00:41]} 56. Ba6 {[%emt 0:02:56]} c4 {[%emt 0:00:20]} 57. Kb2 {[%emt 0:01:26]} Kd2 {[%emt 0:00:05]} 58. Kxa3 {[%emt 0:00:57]} c3 {[%emt 0:00:06]} 0-1

[Event "DEN-chT XtraCon 2018-19"]
[Site "Denmark"]
[Date "2019.03.16"]
[Round "8"]
[White "Vasli, Aref"]
[Black "Filip Rendboe, John"]
[Result "1/2-1/2"]
[ECO "B32"]
[WhiteElo "2357"]
[BlackElo "2170"]
[Annotator "NA"]
[PlyCount "122"]
[EventDate "2018.10.27"]
[EventType "team-tourn"]
[EventCountry "DEN"]
[SourceTitle "playchess.com"]
[Source "ChessBase"]
[SourceQuality "1"]
[TimeControl "40/5400+30:1800+30"]

1. e4 {[%emt 0:00:00]} c5 {[%emt 0:00:00]} 2. Nf3 {[%emt 0:00:00]} Nc6 {[%emt 0:00:00]} 3. d4 {[%emt 0:00:00]} cxd4 {[%emt 0:00:00]} 4. Nxd4 {[%emt 0:00:00]} e5 {[%emt 0:01:20]} 5. Nb5 {[%emt 0:00:00]} Nf6 {[%emt 0:00:33]} 6. N1c3 {[%emt 0:00:17]} d6 {[%emt 0:00:15]} 7. a4 {[%emt 0:00:07]} a6 {[%emt 0:01:01]} 8. Na3 {[%emt 0:00:02]} Bg4 {[%emt 0:00:32] B33: Sicilian: Pelikan and Sveshnikov Variations} 9. Qd3 {[%emt 0:00:11]} Nb4 {[%emt 0:15:40]} 10. Qg3 {[%emt 0:00:08]} Be7 {[%emt 0:01:16]} 11. Bc4 {[%emt 0:12:52]} Rc8 $146 {[%emt 0:06:56]} ({Predecessor:} 11... Qd7 12. h3 Be6 13. Bxe6 Qxe6 14. Bg5 Nh5 15. Qf3 g6 16. Bxe7 Qxe7 17. Ne2 {0-1 (31) Bubalovic,D (2297)-Csiszar,C (2423) Harkany 2009}) 12. O-O {[%emt 0:00:08]} O-O {[%emt 0:09:46]} 13. Bb3 {[%emt 0:05:22]} Qd7 {[%emt 0:03:26]} 14. Bg5 {[%emt 0:07:59]} Nh5 {[%emt 0:03:47]} 15. Qh4 {[%emt 0:01:48]} Bxg5 {[%emt 0:00:17]} 16. Qxg5 {[%emt 0:00:09]} Nf4 {[%emt 0:01:15]} 17. f3 {[%emt 0:02:26]} (17. Kh1 $15) 17... Be6 {[%emt 0:06:34]} 18. Rad1 {[%emt 0:02:48] [#]} Nbd3 $1 {[%emt 0:02:27]} 19. Rxd3 {[%emt 0:05:33]} Bxb3 {[%emt 0:00:45]} 20. Rd2 {[%emt 0:00:13]} Bxa4 {[%emt 0:02:01]} 21. Rfd1 {[%emt 0:13:55]} Ne6 {[%emt 0:04:48]} 22. Qf5 {[%emt 0:06:30]} Nd4 {[%emt 0:16:13]} 23. Qxd7 {[%emt 0:00:31]} Bxd7 {[%emt 0:00:06]} 24. Nd5 {[%emt 0:00:07]} Rce8 {[%emt 0:03:03]} 25. Nb6 {[%emt 0:02:58]} Bc6 {[%emt 0:02:07]} 26. c3 {[%emt 0:02:20]} Nb5 {[%emt 0:04:17]} 27. Nxb5 {[%emt 0:02:24]} Bxb5 {[%emt 0:00:58]} 28. Rxd6 {[%emt 0:00:20]} f5 {[%emt 0:00:11]} 29. exf5 {[%emt 0:07:18]} Rxf5 {[%emt 0:00:22]} 30. Nd5 {[%emt 0:00:33]} Bc6 {[%emt 0:02:23]} 31. Nb4 {[%emt 0:03:11]} Bb5 {[%emt 0:00:18]} 32. Rb6 {[%emt 0:02:52]} Rf7 {[%emt 0:00:36]} 33. b3 {[%emt 0:03:56]} Rc8 {[%emt 0:05:01]} 34. c4 {[%emt 0:00:56]} Be8 {[%emt 0:00:29]} 35. Re6 {[%emt 0:01:28]} b5 {[%emt 0:03:09]} 36. c5 {[%emt 0:09:23]} a5 {[%emt 0:01:44]} 37. Nd5 {[%emt 0:00:09]} Kf8 {[%emt 0:00:34]} 38. Rc1 {[%emt 0:02:46]} a4 {[%emt 0:02:20]} 39. b4 {[%emt 0:01:43]} a3 {[%emt 0:01:38]} 40. Ra6 {[%emt 0:00:52]} Bc6 {[%emt 0:00:31]} 41. Nc3 {[%emt 0:33:08]} Rf4 {[%emt 0:30:36]} 42. Rb1 {[%emt 0:00:00]} Rc4 {[%emt 0:00:00]} 43. Rxa3 {[%emt 0:00:00]} Rd8 {[%emt 0:00:00]} 44. Ne2 {[%emt 0:00:00]} e4 {[%emt 0:00:00]} 45. Kf2 {[%emt 0:00:00]} Rd3 {[%emt 0:00:00]} 46. Rxd3 {[%emt 0:00:00]} exd3 {[%emt 0:00:00]} 47. Nc1 {[%emt 0:00:00]} Rxb4 $1 {[%emt 0:00:00]} 48. Nb3 {[%emt 0:00:00]} Kf7 {[%emt 0:00:00]} 49. Ke3 {[%emt 0:00:00]} Bd7 {[%emt 0:00:00]} 50. Nd2 {[%emt 0:00:00]} Rxb1 {[%emt 0:00:00]} 51. Nxb1 {[%emt 0:00:00]} Kf6 {[%emt 0:00:00]} 52. Nc3 {[%emt 0:00:05]} g5 {[%emt 0:00:00]} 53. Ne4+ {[%emt 0:02:36]} Ke5 {[%emt 0:00:00]} 54. Kxd3 {[%emt 0:00:02]} Bf5 {[%emt 0:00:00]} 55. Kc3 {[%emt 0:00:36]} g4 {[%emt 0:00:00]} 56. Nd6 {[%emt 0:00:46]} gxf3 $11 {[%emt 0:00:23]} 57. Nxf5 {[%emt 0:00:14]} fxg2 {[%emt 0:01:13]} 58. Nh4 {[%emt 0:00:07]} g1=N {[%emt 0:00:18]} 59. Kb4 {[%emt 0:00:01]} Kd5 {[%emt 0:00:40]} 60. Kxb5 {[%emt 0:00:13]} Ne2 {[%emt 0:00:08]} 61. Nf3 {[%emt 0:00:28]} Nc3+ {[%emt 0:00:14]} 1/2-1/2

[Event "DEN-chT XtraCon 2018-19"]
[Site "Denmark"]
[Date "2019.03.16"]
[Round "8"]
[White "Christensen, Tobias"]
[Black "Bromann, Thorbjorn"]
[Result "0-1"]
[ECO "C11"]
[WhiteElo "2351"]
[BlackElo "2395"]
[Annotator "NA"]
[PlyCount "118"]
[EventDate "2018.10.27"]
[EventType "team-tourn"]
[EventCountry "DEN"]
[SourceTitle "playchess.com"]
[Source "ChessBase"]
[SourceQuality "1"]
[TimeControl "40/5400+30:1800+30"]

1. e4 {[%emt 0:00:00]} e6 {[%emt 0:00:25]} 2. d4 {[%emt 0:00:00]} d5 {[%emt 0:00:04]} 3. Nc3 {[%emt 0:00:00]} Nf6 {[%emt 0:00:28]} 4. Bg5 {[%emt 0:00:48]} dxe4 {[%emt 0:01:20]} 5. Nxe4 {[%emt 0:01:08]} Nbd7 {[%emt 0:00:07]} 6. Nf3 {[%emt 0:01:28]} h6 {[%emt 0:00:41]} 7. Nxf6+ {[%emt 0:00:21]} Nxf6 {[%emt 0:00:08]} 8. Be3 {[%emt 0:00:12]} Nd5 {[%emt 0:01:33]} 9. Bd2 {[%emt 0:00:49] C10: French with 3 Nc3: Unusual Black 3rd moves and 3...dxe4} c5 {[%emt 0:01:54]} 10. Bb5+ {[%emt 0:06:56]} Bd7 {[%emt 0:00:12]} 11. Bxd7+ {[%emt 0:00:18]} Qxd7 {[%emt 0:00:06]} 12. c4 {[%emt 0:09:39]} Nb6 {[%emt 0:19:45]} 13. Rc1 {[%emt 0:00:09]} cxd4 {[%emt 0:00:41]} 14. O-O {[%emt 0:03:06]} Rc8 {[%emt 0:05:57]} 15. Ne5 {[%emt 0:05:49]} Qd8 {[%emt 0:02:40]} 16. Re1 {[%emt 0:27:06]} Bd6 {[%emt 0:06:23] [#]} 17. b3 $146 {[%emt 0:19:57]} Qf6 {[%emt 0:05:22]} 18. f4 {[%emt 0:08:46]} O-O {[%emt 0:03:04]} 19. Qh5 {[%emt 0:02:03]} Rfd8 {[%emt 0:08:40]} 20. Ng4 {[%emt 0:08:21]} Qf5 {[%emt 0:01:44]} 21. Qxf5 {[%emt 0:00:03]} exf5 {[%emt 0:00:04]} 22. Ne5 {[%emt 0:00:47]} Bxe5 {[%emt 0:13:00]} 23. Rxe5 {[%emt 0:00:02]} g6 {[%emt 0:00:08]} 24. Ba5 {[%emt 0:00:32]} Rd5 {[%emt 0:19:28]} 25. Rce1 {[%emt 0:01:05]} Rxe5 {[%emt 0:07:04]} 26. Rxe5 {[%emt 0:00:07]} Nd7 {[%emt 0:00:54]} 27. Rd5 {[%emt 0:00:46]} Nc5 {[%emt 0:00:03]} 28. Rxd4 {[%emt 0:00:55]} b6 {[%emt 0:00:24]} 29. Bd2 {[%emt 0:00:52]} Rc7 {[%emt 0:01:04]} 30. g3 {[%emt 0:01:09]} Kg7 {[%emt 0:00:39]} 31. Bb4 {[%emt 0:00:52]} Ne4 {[%emt 0:00:43]} 32. Rd8 {[%emt 0:00:16]} g5 {[%emt 0:00:24]} 33. Bd6 {[%emt 0:01:24]} Rc6 {[%emt 0:00:42]} 34. Be5+ {[%emt 0:00:25]} f6 {[%emt 0:00:02]} 35. Rd7+ {[%emt 0:00:40]} Kg6 {[%emt 0:00:02]} 36. Bd4 {[%emt 0:00:15]} a6 {[%emt 0:00:24]} 37. fxg5 {[%emt 0:00:32]} hxg5 {[%emt 0:00:48]} 38. Rb7 {[%emt 0:00:41]} b5 {[%emt 0:01:10]} 39. Rb6 {[%emt 0:00:13]} Rc8 {[%emt 0:00:38]} 40. cxb5 {[%emt 0:00:57]} Rc1+ {[%emt 0:00:29]} 41. Kg2 {[%emt 0:00:32]} axb5 {[%emt 0:02:05]} 42. Rxb5 {[%emt 0:05:54]} Rc2+ {[%emt 0:00:27]} 43. Kg1 {[%emt 0:00:49]} Rd2 {[%emt 0:02:19]} ({Don't play} 43... Rxa2 44. b4) (43... f4 $19 {and Black stays clearly on top.} 44. gxf4 gxf4) 44. Be3 {[%emt 0:01:38]} Rxa2 {[%emt 0:00:11]} 45. Rd5 {[%emt 0:01:25]} Rb2 {[%emt 0:00:36]} 46. Rd3 {[%emt 0:00:32]} Kh5 {[%emt 0:02:47]} 47. Bd4 {[%emt 0:00:14]} Rc2 {[%emt 0:00:40]} 48. h3 {[%emt 0:02:56]} g4 {[%emt 0:01:45]} 49. hxg4+ {[%emt 0:00:23]} Kxg4 {[%emt 0:00:28]} 50. b4 {[%emt 0:01:54]} Nxg3 {[%emt 0:04:48]} 51. Bf2 {[%emt 0:15:06]} f4 $19 {[%emt 0:01:33]} 52. Be1 {[%emt 0:03:00]} Kh3 {[%emt 0:01:00]} 53. Rd2 {[%emt 0:00:40]} Rc1 {[%emt 0:01:20]} 54. Rh2+ {[%emt 0:00:05]} Kg4 {[%emt 0:00:04]} 55. Kf2 {[%emt 0:00:05]} Ne4+ {[%emt 0:01:51]} 56. Kf1 {[%emt 0:00:09]} f3 {[%emt 0:00:23]} 57. Rh4+ {[%emt 0:00:27]} Kf5 {[%emt 0:00:09]} 58. Rh2 {[%emt 0:00:30]} Kf4 {[%emt 0:02:00]} 59. Rb2 {[%emt 0:00:13]} f2 {[%emt 0:01:55]} 0-1

[Event "DEN-chT XtraCon 2018-19"]
[Site "Denmark"]
[Date "2019.03.16"]
[Round "8"]
[White "Sylvan, Jacob"]
[Black "Skaanning-Pedersen, Kim Henrik"]
[Result "1/2-1/2"]
[ECO "B35"]
[WhiteElo "2330"]
[BlackElo "2200"]
[Annotator "NA"]
[PlyCount "57"]
[EventDate "2018.10.27"]
[EventType "team-tourn"]
[EventCountry "DEN"]
[SourceTitle "playchess.com"]
[Source "ChessBase"]
[SourceQuality "1"]
[TimeControl "40/5400+30:1800+30"]

1. e4 {[%emt 0:00:00]} c5 {[%emt 0:00:00]} 2. Nf3 {[%emt 0:00:00]} g6 {[%emt 0:00:00]} 3. d4 {[%emt 0:00:04]} cxd4 {[%emt 0:00:18]} 4. Nxd4 {[%emt 0:00:08]} Nc6 {[%emt 0:00:15]} 5. Be3 {[%emt 0:01:21]} Bg7 {[%emt 0:00:22]} 6. Nc3 {[%emt 0:01:15]} Nf6 {[%emt 0:00:15]} 7. Bc4 {[%emt 0:00:08]} Qa5 {[%emt 0:00:10]} 8. O-O {[%emt 0:07:32]} O-O {[%emt 0:00:47]} 9. Bb3 {[%emt 0:00:54]} d6 {[%emt 0:00:20]} 10. h3 {[%emt 0:01:27]} Bd7 {[%emt 0:00:32]} 11. Re1 {[%emt 0:04:07]} Rac8 {[%emt 0:04:41]} 12. f4 {[%emt 0:07:28] B35: Sicilian: Accelerated Dragon with 5 Nc3: main line} (12. Qd2 Qa6 13. f4 Rfd8 14. Rad1 b5 15. Ndxb5 Nxe4 16. Qd5 Nf6 17. Qxf7+ Kh8 18. Qc4 Qb7 19. Qe2 Rf8 {½-½ (47) Sasikiran,K (2669)-Matlakov,M (2714) Khanty-Mansiysk 2017}) 12... Nxd4 {[%emt 0:08:48]} 13. Bxd4 {[%emt 0:01:50]} Bc6 {[%emt 0:00:39]} 14. Qe2 {[%emt 0:09:26]} Nd7 {[%emt 0:11:33]} 15. e5 $146 {[%emt 0:12:07]} ({Predecessor:} 15. Qf2 Bxd4 16. Qxd4 Qc5 17. Qxc5 Nxc5 18. e5 Rfd8 19. exd6 Rxd6 20. Rxe7 Nxb3 21. axb3 {½-½ (56) Bodek,M (2236)-Barros Rivadeneira,C (2116) Caldas Novas 2011}) 15... e6 {[%emt 0:17:59]} 16. Qe3 {[%emt 0:03:22]} dxe5 {[%emt 0:01:01]} 17. fxe5 {[%emt 0:00:14]} b5 {[%emt 0:05:42]} 18. a3 {[%emt 0:02:16]} Nb6 {[%emt 0:01:59]} 19. Rad1 {[%emt 0:10:36]} Rfd8 {[%emt 0:03:57]} 20. Qf2 {[%emt 0:06:41]} Rd7 {[%emt 0:05:27]} (20... Nc4 $11) 21. Ne4 {[%emt 0:02:36]} Bxe4 $2 {[%emt 0:03:12]} ({Black should try} 21... Nc4 $14) 22. Rxe4 $2 {[%emt 0:00:32]} (22. Bxb6 $1 $18 Qxb6 23. Rxd7 Qxf2+ 24. Kxf2) 22... Rcd8 {[%emt 0:01:37]} 23. c3 {[%emt 0:00:57]} Nc4 {[%emt 0:01:14]} 24. Rde1 {[%emt 0:07:41]} Qc7 {[%emt 0:02:19]} 25. a4 {[%emt 0:01:29]} Na5 {[%emt 0:06:54]} 26. Bd1 $17 {[%emt 0:04:13]} (26. Bc2 $11) 26... Nc6 {[%emt 0:03:20]} 27. axb5 {[%emt 0:01:40]} Nxd4 {[%emt 0:02:35]} 28. cxd4 {[%emt 0:00:15]} Qb6 {[%emt 0:02:16]} 29. Rf1 {[%emt 0:03:34]} 1/2-1/2